bitfinex-derivatives/quotes_ETHF0:USTF0_20250101
["timestamp","ask_amount","ask_price","bid_price","bid_amount"]
[1735722353153,0.8847,3339.1,3338.8,0.4309]
[1735722353356,1.18473,3339.1,3338.7,1.171]
[1735722353557,1.18473,3339.1,3338.8,0.30005]
[1735722354764,0.8847,3339.1,3338.8,0.30005]
[1735722354964,1.18473,3339.1,3338.8,0.30005]
[1735722355164,1.18473,3339.1,3338.6,3.44549263]
[1735722355165,0.8847,3339.1,3338.9,0.30005]
[1735722355966,0.8847,3339.1,3338.8,0.30005]
[1735722357770,0.8847,3339.1,3339.0,0.30004]
[1735722358568,0.8847,3339.1,3338.9,0.30004]
[1735722359468,0.8847,3339.1,3338.8,0.30005]
[1735722359669,0.8847,3339.1,3338.9,0.30005]
[1735722359968,0.8847,3339.1,3338.7,2.27449263]
[1735722360270,0.8847,3339.1,3338.8,0.30006]
[1735722360471,0.8847,3339.1,3338.7,2.27449263]
[1735722360769,0.8847,3339.1,3338.8,0.30006]
[1735722360770,1.18473,3339.1,3338.8,0.30006]
[1735722361166,0.8847,3339.1,3338.8,0.30006]
[1735722361567,0.8847,3339.1,3338.9,0.30004]
[1735722362065,0.8847,3339.1,3339.0,0.4202]
[1735722364471,0.4262,3339.5,3339.0,0.4202]
[1735722364674,0.4262,3339.5,3339.1,0.30002]
[1735722364871,0.3,3339.4,3339.1,0.30002]
[1735722365068,0.3,3339.4,3339.0,0.4202]
[1735722365471,0.3,3339.4,3339.1,0.30003]
[1735722366267,0.4262,3339.5,3339.4,0.3]
[1735722366981,0.4262,3339.5,3339.3,0.30001]
[1735722366982,0.30001,3339.4,3339.3,0.30001]
[1735722367173,0.4262,3339.5,3339.0,3.59929263]
[1735722367372,0.30001,3339.4,3339.1,0.30003]
[1735722367673,0.30001,3339.4,3339.0,1.3248]
[1735722368079,0.4262,3339.5,3339.0,0.4202]
[1735722368279,0.4262,3339.5,3339.1,0.30002]
[1735722368478,0.30002,3339.3,3339.1,0.30002]
[1735722369183,0.30002,3339.2,3339.1,0.30002]
[1735722369885,0.4262,3339.5,3339.0,0.4202]
[1735722370085,0.30001,3339.4,3339.3,0.30001]
[1735722370983,0.8568,3339.6,3339.3,2.27449263]
[1735722371184,0.4285,3339.6,3339.5,0.3]
[1735722371784,3.2078,3339.7,3339.4,1.171]
[1735722371986,3.2078,3339.7,3339.6,0.29999]
[1735722372585,3.2078,3339.7,3339.5,0.4626]
[1735722372880,3.2078,3339.7,3339.5,0.76259]
[1735722373285,1.19027,3339.8,3339.5,3.6704]
[1735722373475,1.19027,3339.8,3339.6,0.29998]
[1735722374677,1.19027,3339.8,3339.5,3.6704]
[1735722374881,1.19027,3339.8,3339.5,3.97039]
[1735722375081,0.29999,3339.6,3339.5,3.6704]
[1735722375381,0.8903,3339.8,3339.3,1.171]
[1735722375584,0.29998,3339.7,3339.5,0.4445]
[1735722375783,0.29998,3339.7,3339.5,0.74449]
[1735722375980,0.4308,3340.0,3339.6,2.27449263]
[1735722376179,0.4308,3340.0,3339.7,0.4385]
[1735722376487,0.73076,3340.0,3339.7,0.29997]
[1735722377084,0.73076,3340.0,3339.8,0.29997]
[1735722378077,0.73076,3340.0,3339.8,0.29996]
[1735722378685,0.73076,3340.0,3339.9,0.29996]
[1735722379288,0.29996,3339.9,3339.8,0.29997]
[1735722379790,0.73076,3340.0,3339.8,0.29997]
[1735722380691,0.4308,3340.0,3339.8,0.29997]
[1735722380987,0.29996,3339.9,3339.8,0.29997]
[1735722381791,0.29999,3339.6,3339.5,0.74449]
[1735722381989,0.29998,3339.7,3339.6,0.29999]
[1735722382490,0.29999,3339.6,3339.5,0.74449]
[1735722383491,0.3,3339.5,3339.4,3.2078]
[1735722383695,0.7496,3339.5,3339.4,3.2078]
[1735722383890,0.30004,3339.1,3338.9,0.30004]
[1735722384089,0.4496,3339.5,3338.9,0.30004]
[1735722384288,0.30003,3339.2,3338.9,0.30004]
[1735722384791,0.4286,3339.1,3338.9,0.30004]
[1735722385695,0.4286,3339.1,3338.8,4.8085]
[1735722385994,0.4286,3339.1,3339.0,0.30004]
[1735722386492,0.30002,3339.3,3339.0,0.30004]
[1735722386693,0.72862,3339.3,3339.0,0.30004]
[1735722386894,0.4286,3339.3,3339.1,0.30003]
[1735722387489,4.6771232,3339.4,3339.2,0.30002]
[1735722387687,4.6771232,3339.4,3339.3,0.464]
[1735722388191,1.193,3339.5,3339.3,0.464]
[1735722389193,0.3,3339.4,3339.3,0.464]
[1735722389395,0.893,3339.5,3339.3,0.464]
[1735722389590,1.193,3339.5,3339.3,0.464]
[1735722392697,5.8701232,3339.5,3339.3,0.464]
[1735722393797,5.5701232,3339.5,3339.3,0.464]
[1735722393991,0.3,3339.4,3339.1,0.30003]
[1735722394186,0.4521,3339.3,3339.2,0.30002]
[1735722394993,5.5701232,3339.5,3339.3,0.30001]
[1735722395293,5.5701232,3339.5,3339.0,0.4497]
[1735722395494,5.8701232,3339.5,3339.2,0.30002]
[1735722395895,5.5701232,3339.5,3339.2,0.30002]
[1735722396099,5.5701232,3339.5,3339.0,0.4497]
[1735722396303,5.5701232,3339.5,3339.3,0.30001]
[1735722396304,0.893,3339.5,3339.3,0.30001]
[1735722397498,0.30001,3339.4,3339.1,0.30003]
[1735722397702,0.30001,3339.4,3339.1,1.47103]
[1735722398201,0.893,3339.5,3339.0,4.69799853]
[1735722398405,0.30003,3339.2,3339.0,4.69799853]
[1735722398595,0.4529,3339.1,3339.0,4.69799853]
[1735722398802,0.9054,3339.1,3338.9,1.47104]
[1735722399101,0.4264,3339.0,3338.9,1.47104]
[1735722399494,0.4264,3339.0,3338.9,0.30004]
[1735722399693,0.4264,3339.0,3338.8,9.07679853]
[1735722399694,0.72645,3339.0,3338.8,9.07679853]
[1735722399894,0.30005,3338.9,3338.8,9.07679853]
[1735722400101,0.30005,3338.9,3338.8,4.3788]
[1735722400497,0.30005,3338.9,3338.8,3.2078]
[1735722402007,0.30008,3338.6,3338.5,4.69799853]
[1735722402398,0.30007,3338.7,3338.5,4.69799853]
[1735722402598,0.76108,3338.6,3338.4,3.50789]
[1735722402804,0.4605,3338.5,3338.4,3.50789]
[1735722403306,0.76059,3338.5,3338.4,3.2078]
[1735722403498,0.3001,3338.3,3338.2,4.69799853]
[1735722403802,2.57459263,3338.3,3338.2,4.69799853]
[1735722404300,2.27449263,3338.3,3337.8,3.99859853]
[1735722404603,0.30014,3337.9,3337.8,3.99859853]
[1735722405902,8.99589663,3338.0,3337.3,0.30019]
[1735722406103,0.30018,3337.5,3337.3,0.30019]
[1735722406400,0.4424,3337.4,3336.9,2.27449263]
[1735722406605,0.8779,3337.4,3336.9,2.27449263]
[1735722406802,0.3002,3337.2,3336.9,0.76553]
[1735722407008,0.3002,3337.2,3336.8,0.30023]
[1735722407405,0.30022,3337.1,3336.8,0.30023]
[1735722407705,0.30022,3337.1,3336.9,0.30023]
[1735722407706,0.74352,3337.1,3336.9,0.30023]
[1735722407895,0.74352,3337.1,3336.8,0.30024]
[1735722408098,0.74352,3337.1,3336.5,0.4653]
[1735722408099,0.30024,3336.8,3336.5,0.76556]
[1735722408299,2.71779263,3337.1,3336.4,3.2078]
[1735722408500,2.71779263,3337.1,3336.4,3.50807]
[1735722408501,0.72555,3336.7,3336.4,3.50807]
[1735722408696,0.30026,3336.6,3336.2,0.30028]
[1735722408906,0.75836,3336.6,3336.0,1.171]
[1735722409204,0.4581,3336.6,3335.8,3.2078]
[1735722409411,3.50808,3336.4,3336.0,0.3003]
[1735722409598,0.4286,3336.3,3336.0,0.3003]
[1735722409804,3.2078,3336.4,3335.8,5.48229263]
[1735722410007,0.30026,3336.6,3336.1,0.30029]
[1735722410201,0.4253,3336.7,3335.9,0.4252]
[1735722410402,0.30029,3336.3,3335.9,0.72552]
[1735722410603,3.2078,3336.4,3335.9,0.4252]
[1735722410910,0.4253,3336.7,3335.8,5.48229263]
[1735722411104,0.30027,3336.5,3336.0,0.3003]
[1735722411302,1.15415,3336.7,3335.9,0.4252]
[1735722411497,0.30026,3336.6,3336.2,0.30029]
[1735722411701,0.30026,3336.6,3336.1,0.3003]
[1735722412803,1.15415,3336.7,3336.1,0.3003]
[1735722413115,4.6101,3337.2,3336.2,3.2078]
[1735722413407,0.4349,3337.1,3336.5,0.30026]
[1735722413610,0.30022,3337.0,3336.5,0.30026]
[1735722414711,3.94138,3337.4,3336.9,0.30022]
[1735722414906,0.3002,3337.3,3336.8,0.30023]
[1735722415106,3.50799,3337.4,3336.9,0.30023]
[1735722415307,0.30019,3337.3,3336.6,1.17435]
[1735722415503,0.30021,3337.2,3336.7,0.30024]
[1735722415904,0.4282,3337.1,3336.7,0.30024]
[1735722416306,0.4282,3337.1,3336.8,0.30023]
[1735722416704,0.4282,3337.1,3336.9,0.30023]
[1735722417109,0.4282,3337.1,3336.8,0.30024]
[1735722418003,0.4282,3337.1,3336.6,0.8741]
[1735722418210,0.4282,3337.1,3336.6,1.17435]
[1735722418714,0.72842,3337.1,3336.6,1.17435]
[1735722419509,0.4282,3337.1,3336.7,0.30024]
[1735722420312,0.3002,3337.2,3336.7,0.30024]
[1735722420509,3.50799,3337.4,3336.9,0.30022]
[1735722420708,3.50799,3337.4,3336.7,2.27449263]
[1735722420709,3.2078,3337.4,3336.7,2.27449263]
[1735722421009,3.2078,3337.4,3336.7,0.30024]
[1735722421311,0.30025,3336.8,3336.4,0.30027]
[1735722421609,3.2078,3337.0,3336.2,3.2078]
[1735722421610,0.8813,3336.7,3336.5,0.30026]
[1735722422611,1.18155,3336.7,3336.4,0.30027]
[1735722422807,0.8813,3336.7,3336.2,3.2078]
[1735722423010,1.18155,3336.7,3336.4,0.30027]
[1735722423213,0.8813,3336.7,3336.2,3.2078]
[1735722423415,0.30027,3336.5,3336.2,3.50809]
[1735722423809,0.30026,3336.6,3336.2,3.50809]
[1735722424003,0.8813,3336.7,3336.2,3.2078]
[1735722424209,0.30028,3336.3,3336.2,3.2078]
[1735722424416,0.8813,3336.7,3335.8,3.2078]
[1735722424417,5.48229263,3336.6,3335.8,3.2078]
[1735722424615,0.4563,3336.2,3335.8,3.2078]
[1735722424813,0.4357,3336.1,3335.8,3.2078]
[1735722425114,0.75661,3336.0,3335.8,3.2078]
[1735722425618,0.75661,3336.0,3335.8,3.50812]
[1735722425812,0.4563,3336.0,3335.8,3.2078]
[1735722426017,0.4563,3336.0,3335.9,0.30032]
[1735722426812,0.4357,3336.1,3336.0,0.30031]
[1735722427018,0.30028,3336.3,3336.1,0.3003]
[1735722428218,0.30028,3336.3,3335.8,3.6369]
[1735722428420,0.30028,3336.3,3336.0,0.30031]
[1735722428609,0.30028,3336.3,3335.8,3.6369]
[1735722429006,0.9222,3336.5,3335.9,2.27449263]
[1735722429220,0.30028,3336.4,3336.2,0.30029]
[1735722430419,0.30027,3336.4,3336.2,0.30029]
[1735722430714,0.9222,3336.5,3335.9,2.27449263]
[1735722430918,1.22247,3336.5,3336.3,0.30028]
[1735722431120,0.30027,3336.4,3336.2,0.30029]
[1735722431314,0.9222,3336.5,3335.9,2.27449263]
[1735722431620,1.22247,3336.5,3336.3,0.30028]
[1735722431913,0.9222,3336.5,3336.4,0.30027]
[1735722432320,1.22247,3336.5,3336.3,0.30028]
[1735722432818,0.4659,3336.5,3336.4,0.30027]
[1735722433017,3.50806,3336.6,3336.5,0.30026]
[1735722433018,3.2078,3336.6,3336.5,0.30026]
[1735722433820,3.6459,3336.6,3336.3,0.4521]
[1735722434116,3.6459,3336.6,3336.2,0.30029]
[1735722434117,0.30027,3336.4,3336.2,0.30029]
[1735722434315,3.6459,3336.6,3336.1,1.178]
[1735722434523,3.2078,3336.6,3336.5,0.30026]
[1735722434825,3.2078,3336.6,3336.1,1.178]
[1735722435024,0.30027,3336.5,3336.3,0.30028]
[1735722435921,0.30029,3336.3,3336.1,1.47829]
[1735722436226,0.30029,3336.3,3336.1,1.4783]
[1735722436419,0.30029,3336.3,3336.0,0.4521]
[1735722436618,0.30028,3336.4,3336.2,0.30306178]
[1735722436818,0.30028,3336.3,3336.2,0.30306178]
[1735722439125,0.30028,3336.3,3336.2,0.00277178]
[1735722439423,2.57477263,3336.3,3336.2,0.00277178]
[1735722439627,0.30032,3335.9,3335.8,3.2078]
[1735722442123,1.3201,3336.2,3335.4,3.2078]
[1735722442124,3.2078,3336.1,3335.4,3.2078]
[1735722442428,0.30034,3335.7,3335.5,0.30035]
[1735722442624,3.2078,3336.1,3335.5,0.30035]
[1735722442826,0.30035,3335.6,3335.5,0.30035]
[1735722444032,0.30032,3335.9,3335.7,0.30033]
[1735722444326,0.30034,3335.8,3335.6,0.30034]
[1735722444630,0.30034,3335.8,3335.5,0.30035]
[1735722444817,4.0879,3336.1,3335.5,0.30035]
[1735722445022,0.30034,3335.7,3335.6,0.4422]
[1735722445226,3.2078,3336.1,3335.6,0.4422]
[1735722445522,3.2078,3336.1,3336.0,0.30031]
[1735722445726,3.2078,3336.1,3335.7,0.4611]
[1735722445727,0.4471,3336.4,3336.1,0.30029]
[1735722445923,0.4471,3336.4,3336.2,0.30029]
[1735722446226,0.72747,3336.5,3336.3,0.4359]
[1735722446431,0.72747,3336.5,3336.3,0.8781]
[1735722446625,0.72747,3336.5,3336.3,1.17838]
[1735722446626,0.4272,3336.5,3336.3,1.17838]
[1735722446830,0.72747,3336.5,3336.3,0.8781]
[1735722447330,0.30027,3336.4,3336.3,0.8781]
[1735722447636,0.4272,3336.5,3336.3,0.8781]
[1735722447832,0.30027,3336.4,3336.3,0.8781]
[1735722450630,0.4272,3336.5,3335.8,1.186]
[1735722450832,0.30029,3336.2,3336.0,0.7458]
[1735722452228,0.4272,3336.5,3336.0,0.4455]
[1735722452422,3.2078,3336.2,3335.2,3.2078]
[1735722452626,0.30034,3335.7,3335.4,1.15296]
[1735722453023,0.30033,3335.8,3335.5,0.30035]
[1735722453426,0.8747,3336.1,3335.4,0.8526]
[1735722453626,0.30034,3335.7,3335.4,0.8526]
[1735722453832,0.30034,3335.7,3335.5,0.30035]
[1735722454537,0.8747,3336.1,3335.4,3.12709263]
[1735722454929,0.30033,3335.8,3335.5,0.30035]
[1735722455433,0.30033,3335.8,3335.6,0.30034]
[1735722456332,0.30034,3335.7,3335.5,0.30035]
[1735722457133,5.55332953,3336.1,3335.5,0.30035]
[1735722457433,0.30034,3335.8,3335.5,0.30035]
[1735722458235,5.55332953,3336.1,3335.4,0.8526]
[1735722458431,5.10392953,3336.1,3335.6,2.27449263]
[1735722458637,5.10392953,3336.1,3336.0,0.30031]
[1735722458833,5.10392953,3336.1,3335.9,0.30031]
[1735722459029,5.10392953,3336.1,3336.0,0.4405]
[1735722459333,5.40422953,3336.1,3336.0,0.8652]
[1735722459735,5.40422953,3336.1,3335.9,0.30032]
[1735722459938,0.4253,3336.1,3335.7,0.4405]
[1735722460234,0.30031,3336.0,3335.8,0.30032]
[1735722460939,0.4253,3336.1,3335.7,0.4405]
[1735722461134,0.4253,3336.1,3336.0,0.30031]
[1735722461435,0.30031,3336.0,3335.8,0.30033]
[1735722462041,0.72561,3336.1,3335.9,0.30032]
[1735722462638,0.4253,3336.1,3336.0,0.30031]
[1735722464136,0.7256,3336.1,3336.0,0.30031]
[1735722464444,0.30031,3336.0,3335.9,0.30031]
[1735722464742,0.4253,3336.1,3335.7,0.4405]
[1735722465038,3.2078,3336.2,3336.1,0.3003]
[1735722465440,3.2078,3336.2,3335.7,2.71499263]
[1735722465740,0.4313,3336.1,3336.0,0.30031]
[1735722467239,8.18672953,3336.2,3336.1,0.3003]
[1735722467935,7.88642953,3336.2,3336.0,0.3003]
[1735722468142,0.3003,3336.1,3336.0,0.3003]
[1735722470435,0.3003,3336.1,3335.7,2.71499263]
[1735722470636,0.3003,3336.1,3336.0,0.30031]
[1735722470832,4.97892953,3336.1,3336.0,0.30031]
[1735722472242,4.67862953,3336.1,3335.7,2.71499263]
[1735722472448,0.30032,3335.9,3335.8,0.30033]
[1735722472649,0.30033,3335.8,3335.7,0.74083]
[1735722473146,0.30032,3335.9,3335.7,0.74083]
[1735722473347,1.17772,3335.9,3335.7,0.74083]
[1735722473539,1.17772,3335.9,3335.7,0.4405]
[1735722473739,1.17772,3335.9,3335.8,0.30033]
[1735722474045,0.8774,3335.9,3335.8,0.30033]
[1735722474245,1.17772,3335.9,3335.7,0.74083]
[1735722475241,0.8774,3335.9,3335.7,0.4405]
[1735722475439,0.30034,3335.7,3335.5,0.30035]
[1735722476146,0.8774,3335.9,3335.4,1.6077]
[1735722476343,0.30034,3335.7,3335.4,1.6077]
[1735722476544,0.8774,3335.9,3335.4,1.6077]
[1735722476745,0.30034,3335.7,3335.4,1.6077]
[1735722477248,0.30034,3335.7,3335.4,1.90806]
[1735722477740,0.30034,3335.7,3335.5,0.30035]
[1735722477935,0.30034,3335.7,3335.4,1.90806]
[1735722478140,4.67862953,3335.8,3335.4,1.90806]
[1735722478447,0.30034,3335.7,3335.4,1.90806]
[1735722479245,0.30034,3335.7,3335.5,0.30035]
[1735722479450,0.30034,3335.7,3335.4,1.90806]
[1735722479748,0.30035,3335.7,3335.4,1.90806]
[1735722479951,0.30035,3335.6,3335.4,1.6077]
[1735722480544,0.30035,3335.6,3335.4,1.90806]
[1735722480746,5.55602953,3335.9,3335.4,1.90806]
[1735722480747,0.30035,3335.5,3335.4,1.6077]
[1735722480946,0.30034,3335.7,3335.4,1.90806]
[1735722481148,0.30035,3335.6,3335.4,1.90806]
[1735722482241,7.88642953,3335.8,3335.4,1.6077]
[1735722482442,0.30035,3335.6,3335.4,1.90806]
[1735722483147,5.55602953,3335.9,3335.4,1.90806]
[1735722483347,0.30034,3335.7,3335.4,1.90806]
[1735722483540,0.30035,3335.7,3335.4,1.6077]
[1735722483746,0.30034,3335.7,3335.4,1.90806]
[1735722483947,0.30035,3335.6,3335.4,1.90806]
[1735722484349,5.55602953,3335.9,3335.4,1.90806]
[1735722484554,0.30034,3335.7,3335.4,1.90806]
[1735722485251,0.30034,3335.7,3335.4,1.6077]
[1735722485749,0.30034,3335.7,3335.4,1.90806]
[1735722485950,0.30034,3335.7,3335.5,0.30035]
[1735722489055,5.55602953,3335.9,3335.8,0.30033]
[1735722490260,4.67862953,3336.0,3335.6,2.27449263]
[1735722490552,4.67862953,3336.0,3335.9,2.57481263]
[1735722491654,4.97893953,3336.1,3335.9,2.27449263]
[1735722491851,0.30031,3336.0,3335.7,0.30033]
[1735722492157,0.4402,3335.9,3335.7,0.30033]
[1735722492456,0.8604,3335.9,3335.7,0.30033]
[1735722492759,1.16072,3335.9,3335.7,0.30033]
[1735722492955,1.16072,3335.9,3335.6,2.57483263]
[1735722493154,1.16072,3335.9,3335.6,2.27449263]
[1735722493155,0.8604,3335.9,3335.6,2.27449263]
[1735722493354,0.30034,3335.7,3335.6,2.27449263]
[1735722493557,0.4458,3335.8,3335.6,2.27449263]
[1735722493751,0.74613,3335.8,3335.6,2.57484263]
[1735722494059,0.74613,3335.8,3335.6,2.27449263]
[1735722495264,0.74613,3335.8,3335.6,2.57483263]
[1735722498064,0.4458,3335.8,3335.6,2.57483263]
[1735722498859,0.74613,3335.8,3335.6,2.57483263]
[1735722500265,4.67862953,3335.9,3335.6,2.27449263]
[1735722500572,4.67862953,3335.9,3335.8,0.30033]
[1735722500870,4.67862953,3335.9,3335.6,2.27449263]
[1735722501062,4.67862953,3335.9,3335.7,0.30033]
[1735722501464,4.97892953,3336.1,3335.8,0.72622]
[1735722501664,4.97892953,3336.1,3335.9,0.4325]
[1735722502065,4.67862953,3336.1,3335.9,0.73282]
[1735722502264,4.97892953,3336.1,3335.9,0.73282]
[1735722502569,4.97892953,3336.1,3335.9,0.4325]
[1735722503463,4.97893953,3336.1,3335.9,0.4325]
[1735722504368,4.97893953,3336.1,3335.9,0.73282]
[1735722504768,4.67862953,3336.0,3335.9,0.73282]
[1735722505774,4.67862953,3336.0,3335.9,3.00731263]
[1735722506273,4.67862953,3336.1,3336.0,0.30031]
[1735722507470,7.88642953,3336.2,3335.9,2.70699263]
[1735722507767,7.88642953,3336.2,3336.1,0.3003]
[1735722508172,7.88642953,3336.2,3335.9,2.70699263]
[1735722508475,8.18671953,3336.2,3336.0,0.3003]
[1735722509869,0.3003,3336.1,3335.9,3.00731263]
[1735722510679,7.88642953,3336.2,3335.9,3.00731263]
[1735722510879,4.67862953,3336.1,3335.9,3.00731263]
[1735722511776,8.18672953,3336.2,3335.9,3.00731263]
[1735722512783,8.18672953,3336.2,3335.9,2.70699263]
[1735722513077,4.67862953,3336.2,3336.1,0.3003]
[1735722513283,4.67862953,3336.2,3336.1,0.65515229]
[1735722513284,4.67585775,3336.2,3336.1,0.65515229]
[1735722513882,4.67585775,3336.2,3336.1,1.24763097]
[1735722514084,0.4602,3336.5,3336.4,0.30027]
[1735722514277,0.4602,3336.5,3336.4,2.57476263]
[1735722517381,0.4602,3336.5,3336.4,2.27449263]
[1735722518473,0.4602,3336.5,3336.0,10.2547978]
[1735722518677,0.3003,3336.2,3336.1,1.55002722]
[1735722518879,0.3003,3336.2,3336.0,10.2547978]
[1735722519082,0.4558,3336.1,3336.0,10.2547978]
[1735722519478,0.4558,3336.1,3336.0,3.50811]
[1735722520083,0.4558,3336.1,3336.0,3.2078]
[1735722520274,0.7561,3336.1,3336.0,3.2078]
[1735722520678,0.30032,3335.9,3335.8,1.18]
[1735722521084,0.73211,3336.0,3335.8,1.18]
[1735722521286,0.30032,3335.9,3335.8,1.18]
[1735722521782,0.30032,3335.9,3335.7,0.30033]
[1735722521982,0.73211,3336.0,3335.7,0.30033]
[1735722522183,0.4318,3336.0,3335.9,2.27449263]
[1735722522382,0.4318,3336.0,3335.9,2.57481263]
[1735722522583,0.4318,3336.0,3335.9,2.27449263]
[1735722524088,0.4318,3336.0,3335.8,0.72312]
[1735722526690,0.4318,3336.0,3335.8,0.4228]
[1735722526886,0.4318,3336.0,3335.9,0.30032]
[1735722528087,0.4318,3336.0,3335.9,2.57481263]
[1735722528289,0.4318,3336.0,3335.9,3.02751263]
[1735722528883,3.97568183,3336.1,3335.9,2.72719263]
[1735722529091,3.97568183,3336.1,3336.0,0.30031]
[1735722530177,0.4558,3336.1,3336.0,0.30031]
[1735722530489,0.4558,3336.1,3336.0,1.38075179]
[1735722530789,3.51988183,3336.3,3336.2,0.30029]
[1735722530990,3.51988183,3336.3,3336.2,1.08044179]
[1735722531385,4.68586183,3336.4,3336.2,1.08044179]
[1735722531587,4.68586183,3336.4,3336.2,1.38073179]
[1735722531787,4.68586183,3336.4,3336.2,1.08044179]
[1735722532887,4.68586183,3336.4,3336.2,1.38073179]
[1735722533392,4.68586183,3336.4,3336.2,1.08044179]
[1735722533590,0.30028,3336.3,3336.2,1.08044179]
[1735722534188,4.38558183,3336.4,3336.3,0.30028]
[1735722534889,4.68586183,3336.4,3336.2,1.38073179]
[1735722535191,4.38558183,3336.4,3336.3,0.30028]
[1735722536090,4.68585183,3336.4,3336.2,1.38073179]
[1735722536292,4.68585183,3336.4,3336.0,4.72061843]
[1735722536293,0.3003,3336.1,3336.0,4.72061843]
[1735722536488,0.3003,3336.1,3336.0,5.80106022]
[1735722537096,7.59338183,3336.4,3336.0,5.80106022]
[1735722537288,0.3003,3336.2,3336.0,5.02092843]
[1735722537688,3.82018183,3336.2,3336.0,0.30031]
[1735722538093,7.02798183,3336.2,3335.8,4.72061843]
[1735722538290,3.51988183,3336.2,3336.1,1.08044179]
[1735722538593,3.82017183,3336.2,3336.1,1.08044179]
[1735722539996,0.30029,3336.2,3336.1,1.08044179]
[1735722542804,3.82319181,3336.2,3336.1,1.08044179]
[1735722543193,3.52290181,3336.2,3336.1,1.38074179]
[1735722544297,3.82319181,3336.3,3336.1,1.38074179]
[1735722544795,3.82319181,3336.3,3336.1,1.53864179]
[1735722544998,0.30029,3336.2,3336.1,1.08044179]
[1735722545500,3.82319181,3336.2,3336.1,1.08044179]
[1735722546095,3.52290181,3336.2,3336.1,1.08044179]
[1735722547103,3.82319181,3336.2,3336.1,1.08044179]
[1735722548905,3.52290181,3336.2,3336.1,1.08044179]
[1735722549604,3.52290181,3336.2,3336.1,1.38074179]
[1735722549808,3.52290181,3336.2,3336.1,1.08044179]
[1735722550000,3.82319181,3336.2,3336.1,1.08044179]
[1735722551103,0.3003,3336.1,3335.9,5.02092843]
[1735722551303,0.3003,3336.1,3336.0,1.08044179]
[1735722552706,3.82466535,3336.1,3336.0,1.08044179]
[1735722553406,0.30031,3336.0,3335.9,4.72061843]
[1735722553596,0.30031,3336.0,3335.9,5.80106022]
[1735722553801,0.75921,3336.0,3335.9,1.08044179]
[1735722555204,0.30033,3335.8,3335.7,5.80106022]
[1735722556200,3.52356093,3335.8,3335.5,7.92841843]
[1735722556403,0.30035,3335.6,3335.5,7.92841843]
[1735722557404,0.30035,3335.6,3335.5,9.00886022]
[1735722557603,0.30035,3335.6,3335.5,4.28824179]
[1735722557604,3.82391093,3335.6,3335.5,4.28824179]
[1735722558706,0.30035,3335.6,3335.5,4.28824179]
[1735722559004,0.30035,3335.6,3335.5,4.74254179]
[1735722559197,0.73355,3335.6,3335.5,4.74254179]
[1735722561109,0.73355,3335.6,3335.5,1.53474179]
[1735722561305,3.52356093,3335.7,3335.6,0.30035]
[1735722561508,3.52356093,3335.7,3335.6,0.75115]
[1735722562102,3.82389093,3335.8,3335.6,0.75115]
[1735722562505,3.52356093,3335.8,3335.7,1.08044179]
[1735722562714,3.52356093,3335.8,3335.7,1.38078179]
[1735722563510,0.3003,3336.1,3335.7,5.80106022]
[1735722563511,3.52356093,3336.1,3335.7,5.80106022]
[1735722563710,3.52356093,3336.1,3336.0,1.38075179]
[1735722564911,3.52356093,3336.3,3336.1,0.3003]
[1735722565119,3.52356093,3336.3,3336.2,1.08044179]
[1735722565621,0.30029,3336.2,3336.1,0.4331]
[1735722565923,0.74939,3336.2,3336.1,0.4331]
[1735722566821,0.4491,3336.2,3336.0,5.80106022]
[1735722567021,0.7289,3336.1,3336.0,5.80106022]
[1735722567222,0.7289,3336.1,3336.0,1.08044179]
[1735722567923,0.30031,3336.0,3335.9,4.72061843]
[1735722568620,3.82387093,3336.0,3335.8,1.08044179]
[1735722568825,3.82388093,3336.0,3335.8,1.08044179]
[1735722569016,3.52356093,3336.0,3335.8,1.08044179]
[1735722569322,3.52356093,3336.0,3335.9,0.464]
[1735722569522,3.52356093,3336.0,3335.9,0.76432]
[1735722570522,3.52356093,3336.0,3335.9,0.464]
[1735722570723,3.82387093,3336.0,3335.9,0.464]
[1735722571825,0.30032,3335.9,3335.7,1.6171]
[1735722572019,0.30032,3335.9,3335.8,1.08044179]
[1735722573224,0.30033,3335.8,3335.6,5.02095843]
[1735722573520,3.52356093,3336.0,3335.8,1.08044179]
[1735722573521,0.30032,3335.9,3335.8,1.08044179]
[1735722578524,3.52356093,3336.0,3335.8,1.08044179]
[1735722578827,3.82388093,3336.0,3335.8,1.08044179]
[1735722579930,3.52356093,3336.0,3335.9,0.4346]
[1735722580124,3.82387093,3336.0,3335.9,0.8665]
[1735722582930,3.52356093,3336.0,3335.9,0.8665]
[1735722584336,3.52356093,3336.0,3335.9,1.16682]
[1735722586127,3.52356093,3336.0,3335.9,4.37462]
[1735722586833,3.52356093,3336.0,3335.9,4.72941442]
[1735722587032,3.52356093,3336.2,3336.1,0.3003]
[1735722588434,3.52356093,3336.3,3336.1,0.3003]
[1735722588629,3.52356093,3336.3,3336.2,1.08044179]
[1735722590040,3.52356093,3336.3,3336.2,1.38073179]
[1735722590733,3.82384093,3336.3,3336.2,1.38073179]
[1735722592044,3.52356093,3336.3,3336.2,1.38073179]
[1735722593436,3.52356093,3336.3,3336.0,4.72061843]
[1735722593638,0.3003,3336.2,3336.0,5.02092843]
[1735722593838,0.4447,3336.2,3336.0,4.72061843]
[1735722594040,0.3003,3336.1,3336.0,4.72061843]
[1735722595340,0.3003,3336.1,3336.0,5.80106022]
[1735722595541,0.3003,3336.1,3336.0,1.08044179]
[1735722597544,5.14240672,3336.2,3335.7,4.72061843]
[1735722597749,0.30033,3335.8,3335.7,4.72061843]
[1735722597943,0.30033,3335.8,3335.6,5.91435843]
[1735722598243,0.30033,3335.8,3335.6,5.61401843]
[1735722598844,0.8982,3336.0,3335.6,5.61401843]
[1735722599045,1.19851,3336.0,3335.9,1.08044179]
[1735722599544,0.30033,3335.8,3335.6,4.72061843]